[Event "Titled Tuesday Blitz March 28 Early 2023"]
[White "Ahmadzada, Ahmad"]
[Black "Manukyan, Artyom"]
[WhiteFideId "13413007"]
[BlackFideId "13305786"]
[WhiteElo "2388"]
[BlackElo "2078"]
[Result "1-0"]
[Round "01"]
[TimeControl "180+2"]
[Date "2023.03.28"]
[WhiteClock "0:00:02"]
[BlackClock "0:00:03"]

1. Nf3 {[%clk 0:02:58]}  d5 {[%clk 0:03:00]} 2. g3 {[%clk 0:02:57]}  e6 {[%clk 0:02:53]} 3. Bg2 {[%clk 0:02:55]}  Nf6 {[%clk 0:02:54]} 4. c4 {[%clk 0:02:55]}  Be7 {[%clk 0:02:54]} 5. O-O {[%clk 0:02:55]}  O-O {[%clk 0:02:54]} 6. b3 {[%clk 0:02:56]}  d4 {[%clk 0:02:54]} 7. e3 {[%clk 0:02:55]}  c5 {[%clk 0:02:53]} 8. exd4 {[%clk 0:02:55]}  cxd4 {[%clk 0:02:54]} 9. d3 {[%clk 0:02:56]}  Nc6 {[%clk 0:02:54]} 10. a3 {[%clk 0:02:56]}  a5 {[%clk 0:02:54]} 11. Re1 {[%clk 0:02:56]}  Nd7 {[%clk 0:02:49]} 12. Nbd2 {[%clk 0:02:55]}  e5 {[%clk 0:02:49]} 13. Ne4 {[%clk 0:02:54]}  f6 {[%clk 0:02:49]} 14. g4 {[%clk 0:02:53]}  Nc5 {[%clk 0:02:49]} 15. Nxc5 {[%clk 0:02:51]}  Bxc5 {[%clk 0:02:48]} 16. Nd2 {[%clk 0:02:52]}  Be6 {[%clk 0:02:38]} 17. Ne4 {[%clk 0:02:51]}  Be7 {[%clk 0:02:37]} 18. f4 {[%clk 0:02:40]}  exf4 {[%clk 0:02:29]} 19. Bxf4 {[%clk 0:02:41]}  Ne5 {[%clk 0:02:29]} 20. h3 {[%clk 0:02:32]}  Qd7 {[%clk 0:02:24]} 21. Ng5 {[%clk 0:02:22]}  fxg5 {[%clk 0:02:10]} 22. Bxe5 {[%clk 0:02:23]}  Bf6 {[%clk 0:02:10]} 23. Qd2 {[%clk 0:02:17]}  h6 {[%clk 0:02:05]} 24. Re4 {[%clk 0:02:02]}  Kh8 {[%clk 0:01:41]} 25. Rae1 {[%clk 0:01:59]}  Bxe5 {[%clk 0:01:41]} 26. Rxe5 {[%clk 0:01:59]}  Rf6 {[%clk 0:01:42]} 27. Qe2 {[%clk 0:01:55]}  Bg8 {[%clk 0:01:35]} 28. b4 {[%clk 0:01:48]}  axb4 {[%clk 0:01:35]} 29. axb4 {[%clk 0:01:49]}  Rb8 {[%clk 0:01:17]} 30. c5 {[%clk 0:01:40]}  Qb5 {[%clk 0:01:10]} 31. c6 {[%clk 0:01:20]}  Qxb4 {[%clk 0:01:09]} 32. cxb7 {[%clk 0:01:21]}  Rxb7 {[%clk 0:01:07]} 33. Bxb7 {[%clk 0:01:21]}  Qxb7 {[%clk 0:01:08]} 34. Qe4 {[%clk 0:01:12]}  Qb2 {[%clk 0:01:02]} 35. Rf5 {[%clk 0:00:50]}  Re6 {[%clk 0:01:00]} 36. Re5 {[%clk 0:00:50]}  Rf6 {[%clk 0:00:57]} 37. Rf1 {[%clk 0:00:45]}  Rxf1+ {[%clk 0:00:49]} 38. Kxf1 {[%clk 0:00:46]}  Qc1+ {[%clk 0:00:49]} 39. Kf2 {[%clk 0:00:36]}  Qd2+ {[%clk 0:00:47]} 40. Kg3 {[%clk 0:00:37]}  Qc3 {[%clk 0:00:20]} 41. Re8 {[%clk 0:00:36]}  Qa1 {[%clk 0:00:20]} 42. Kf2 {[%clk 0:00:20]}  Qb2+ {[%clk 0:00:19]} 43. Qe2 {[%clk 0:00:21]}  Qb6 {[%clk 0:00:12]} 44. Kg3 {[%clk 0:00:16]}  Qd6+ {[%clk 0:00:12]} 45. Qe5 {[%clk 0:00:16]}  Qa3 {[%clk 0:00:12]} 46. Qxd4 {[%clk 0:00:12]}  Qc1 {[%clk 0:00:12]} 47. Qe3 {[%clk 0:00:11]}  Qc7+ {[%clk 0:00:12]} 48. Kg2 {[%clk 0:00:11]}  Qc2+ {[%clk 0:00:11]} 49. Qe2 {[%clk 0:00:05]}  Qc6+ {[%clk 0:00:11]} 50. Kg3 {[%clk 0:00:05]}  Qc7+ {[%clk 0:00:12]} 51. Re5 {[%clk 0:00:04]}  Qc1 {[%clk 0:00:10]} 52. Qe3 {[%clk 0:00:04]}  Qc2 {[%clk 0:00:06]} 53. d4 {[%clk 0:00:02]}  Qa2 {[%clk 0:00:05]} 54. Re8 {[%clk 0:00:01]}  Qa7 {[%clk 0:00:04]} 55. Qe4 {[%clk 0:00:02]}  Qc7+ {[%clk 0:00:03]} 56. Re5 {[%clk 0:00:02]}  Qc3+ {[%clk 0:00:03]} 57. Qe3 {[%clk 0:00:03]}  Qc4 {[%clk 0:00:03]} 58. Re7 {[%clk 0:00:03]}  Qa2 {[%clk 0:00:02]} 59. Qe5 {[%clk 0:00:03]}  Qa3+ {[%clk 0:00:02]} 60. Kf2 {[%clk 0:00:03]}  Qb2+ {[%clk 0:00:02]} 61. Ke3 {[%clk 0:00:03]}  Qc3+ {[%clk 0:00:03]} 62. Kf2 {[%clk 0:00:04]}  Qd2+ {[%clk 0:00:03]} 63. Kg1 {[%clk 0:00:02]}  Qc1+ {[%clk 0:00:02]} 64. Kg2 {[%clk 0:00:02]}  Qd2+ {[%clk 0:00:03]} 65. Kg3 {[%clk 0:00:03]}  Qd3+ {[%clk 0:00:03]} 66. Qe3 {[%clk 0:00:04]}  Qd1 {[%clk 0:00:03]} 67. Re5 {[%clk 0:00:04]}  Qb1 {[%clk 0:00:02]} 68. h4 {[%clk 0:00:04]}  gxh4+ {[%clk 0:00:02]} 69. Kxh4 {[%clk 0:00:05]}  Qh1+ {[%clk 0:00:03]} 70. Kg3 {[%clk 0:00:05]}  Qb1 {[%clk 0:00:03]} 71. g5 {[%clk 0:00:06]}  h5 {[%clk 0:00:02]} 72. Re7 {[%clk 0:00:05]}  Qg6 {[%clk 0:00:02]} 73. Qe5 {[%clk 0:00:03]}  Qd3+ {[%clk 0:00:03]} 74. Kh4 {[%clk 0:00:03]}  Qg6 {[%clk 0:00:03]} 75. d5 {[%clk 0:00:03]}  Qd3 {[%clk 0:00:03]} 76. Qxg7# {[%clk 0:00:02]} 1-0


[Site "https://www.chess.com"]

[Event "Titled Tuesday Blitz March 28 Early 2023"]
[White "demon64fields"]
[Black "Kukula, Pawel"]
[BlackFideId "1115081"]
[WhiteElo "2862"]
[BlackElo "2012"]
[Result "1-0"]
[Round "01"]
[TimeControl "180+2"]
[Date "2023.03.28"]
[WhiteClock "0:01:35"]
[BlackClock "0:00:41"]

1. Nf3 {[%clk 0:03:00]}  d5 {[%clk 0:02:58]} 2. g3 {[%clk 0:03:01]}  c6 {[%clk 0:02:58]} 3. Bg2 {[%clk 0:03:01]}  Nf6 {[%clk 0:02:59]} 4. O-O {[%clk 0:03:02]}  g6 {[%clk 0:02:59]} 5. d4 {[%clk 0:03:02]}  Bg7 {[%clk 0:02:59]} 6. Nbd2 {[%clk 0:03:03]}  O-O {[%clk 0:02:59]} 7. c3 {[%clk 0:03:03]}  a5 {[%clk 0:02:59]} 8. Re1 {[%clk 0:03:03]}  Bf5 {[%clk 0:02:58]} 9. Nh4 {[%clk 0:03:02]}  Bg4 {[%clk 0:02:56]} 10. h3 {[%clk 0:03:01]}  Bc8 {[%clk 0:02:53]} 11. Nhf3 {[%clk 0:03:01]}  Ne4 {[%clk 0:02:48]} 12. Nxe4 {[%clk 0:02:59]}  dxe4 {[%clk 0:02:49]} 13. Ng5 {[%clk 0:02:59]}  f5 {[%clk 0:02:43]} 14. Qb3+ {[%clk 0:02:59]}  Qd5 {[%clk 0:02:43]} 15. h4 {[%clk 0:02:56]}  a4 {[%clk 0:02:39]} 16. Qc2 {[%clk 0:02:54]}  h6 {[%clk 0:02:38]} 17. Nh3 {[%clk 0:02:53]}  e5 {[%clk 0:02:37]} 18. dxe5 {[%clk 0:02:50]}  Qxe5 {[%clk 0:02:38]} 19. Be3 {[%clk 0:02:47]}  Qe8 {[%clk 0:02:36]} 20. Rad1 {[%clk 0:02:46]}  Be6 {[%clk 0:02:36]} 21. Qc1 {[%clk 0:02:42]}  Kh7 {[%clk 0:02:34]} 22. a3 {[%clk 0:02:40]}  Nd7 {[%clk 0:02:29]} 23. f3 {[%clk 0:02:30]}  exf3 {[%clk 0:02:19]} 24. exf3 {[%clk 0:02:31]}  Qf7 {[%clk 0:02:14]} 25. Nf4 {[%clk 0:02:28]}  Bb3 {[%clk 0:02:13]} 26. Rd6 {[%clk 0:02:21]}  Nf6 {[%clk 0:01:45]} 27. h5 {[%clk 0:02:15]}  g5 {[%clk 0:01:43]} 28. Ng6 {[%clk 0:02:14]}  Rfe8 {[%clk 0:01:38]} 29. Bd4 {[%clk 0:02:10]}  Rxe1+ {[%clk 0:01:35]} 30. Qxe1 {[%clk 0:02:11]}  Re8 {[%clk 0:01:34]} 31. Qb1 {[%clk 0:01:56]}  Nxh5 {[%clk 0:01:27]} 32. g4 {[%clk 0:01:44]}  Ng3 {[%clk 0:01:19]} 33. Kh2 {[%clk 0:01:39]}  Bxd4 {[%clk 0:00:56]} 34. cxd4 {[%clk 0:01:40]}  Ne2 {[%clk 0:00:46]} 35. Ne5 {[%clk 0:01:35]}  Qg7 {[%clk 0:00:41]} 36. Qxf5+ {[%clk 0:01:35]}  Kg8 {[%clk 0:00:41]} 37. Rg6 {[%clk 0:01:35]} 1-0


[Site "https://www.chess.com"]

[Event "Titled Tuesday Blitz March 28 Early 2023"]
[White "Salman, Pavel"]
[Black "Koustav, Chatterjee"]
[WhiteFideId "24153753"]
[BlackFideId "25073060"]
[WhiteElo "2187"]
[BlackElo "2432"]
[Result "0-1"]
[Round "01"]
[TimeControl "180+2"]
[Date "2023.03.28"]
[WhiteClock "0:00:12"]
[BlackClock "0:00:20"]

1. d4 {[%clk 0:02:57]}  Nf6 {[%clk 0:02:59]} 2. Nc3 {[%clk 0:02:54]}  d5 {[%clk 0:02:59]} 3. Bf4 {[%clk 0:02:53]}  e6 {[%clk 0:02:58]} 4. Nb5 {[%clk 0:02:53]}  Na6 {[%clk 0:02:57]} 5. e3 {[%clk 0:02:53]}  c6 {[%clk 0:02:57]} 6. Nc3 {[%clk 0:02:53]}  Nc7 {[%clk 0:02:57]} 7. g4 {[%clk 0:02:53]}  Bd6 {[%clk 0:02:56]} 8. g5 {[%clk 0:02:52]}  Bxf4 {[%clk 0:02:52]} 9. gxf6 {[%clk 0:02:48]}  Bh6 {[%clk 0:02:52]} 10. fxg7 {[%clk 0:02:48]}  Bxg7 {[%clk 0:02:53]} 11. Nf3 {[%clk 0:02:46]}  Qe7 {[%clk 0:02:48]} 12. Bd3 {[%clk 0:02:43]}  Bd7 {[%clk 0:02:48]} 13. Rg1 {[%clk 0:02:43]}  f6 {[%clk 0:02:33]} 14. Qe2 {[%clk 0:02:25]}  O-O-O {[%clk 0:02:32]} 15. O-O-O {[%clk 0:02:25]}  e5 {[%clk 0:02:20]} 16. e4 {[%clk 0:02:25]}  f5 {[%clk 0:02:20]} 17. exd5 {[%clk 0:02:19]}  e4 {[%clk 0:02:19]} 18. Bc4 {[%clk 0:02:14]}  Rhe8 {[%clk 0:02:05]} 19. Ne1 {[%clk 0:01:48]}  Bh6+ {[%clk 0:01:51]} 20. Kb1 {[%clk 0:01:47]}  Qd6 {[%clk 0:01:49]} 21. dxc6 {[%clk 0:01:46]}  Bxc6 {[%clk 0:01:50]} 22. d5 {[%clk 0:01:44]}  Bd7 {[%clk 0:01:49]} 23. Bb3 {[%clk 0:01:17]}  Na6 {[%clk 0:01:34]} 24. Ng2 {[%clk 0:01:08]}  Nc5 {[%clk 0:01:16]} 25. Ne3 {[%clk 0:01:07]}  Nxb3 {[%clk 0:01:16]} 26. axb3 {[%clk 0:01:08]}  Kb8 {[%clk 0:01:11]} 27. Nc4 {[%clk 0:01:07]}  Qf6 {[%clk 0:01:01]} 28. b4 {[%clk 0:00:39]}  Bf4 {[%clk 0:00:57]} 29. b5 {[%clk 0:00:37]}  Rc8 {[%clk 0:00:52]} 30. b6 {[%clk 0:00:33]}  axb6 {[%clk 0:00:50]} 31. d6 {[%clk 0:00:32]}  Qd8 {[%clk 0:00:21]} 32. Nd5 {[%clk 0:00:31]}  Bb5 {[%clk 0:00:21]} 33. Nxf4 {[%clk 0:00:26]}  Bxc4 {[%clk 0:00:21]} 34. Qh5 {[%clk 0:00:27]}  Qd7 {[%clk 0:00:21]} 35. b3 {[%clk 0:00:21]}  Bg8 {[%clk 0:00:20]} 36. Qh6 {[%clk 0:00:21]}  Red8 {[%clk 0:00:20]} 37. Rg7 {[%clk 0:00:20]}  Qc6 {[%clk 0:00:21]} 38. Rd2 {[%clk 0:00:18]}  Bxb3 {[%clk 0:00:20]} 39. Qxh7 {[%clk 0:00:15]}  Bxc2+ {[%clk 0:00:20]} 40. Kc1 {[%clk 0:00:14]}  Bd3+ {[%clk 0:00:20]} 41. Kb2 {[%clk 0:00:13]}  Qc1+ {[%clk 0:00:20]} 42. Ka2 {[%clk 0:00:12]}  Bc4# {[%clk 0:00:20]} 0-1


[Site "https://www.chess.com"]

[Event "Titled Tuesday Blitz March 28 Early 2023"]
[White "Moussard, Jules"]
[Black "Rakhimgaliyev, Yerlan"]
[WhiteFideId "642908"]
[BlackFideId "13705148"]
[WhiteElo "2610"]
[BlackElo "2261"]
[Result "1-0"]
[Round "01"]
[TimeControl "180+2"]
[Date "2023.03.28"]
[WhiteClock "0:00:03"]
[BlackClock "0:00:01"]

1. Nf3 {[%clk 0:02:54]}  Nf6 {[%clk 0:01:51]} 2. g3 {[%clk 0:02:48]}  g6 {[%clk 0:01:51]} 3. Bg2 {[%clk 0:02:48]}  Bg7 {[%clk 0:01:52]} 4. O-O {[%clk 0:02:49]}  O-O {[%clk 0:01:53]} 5. d4 {[%clk 0:02:48]}  d6 {[%clk 0:01:54]} 6. Nc3 {[%clk 0:02:44]}  Na6 {[%clk 0:01:51]} 7. e4 {[%clk 0:02:44]}  e5 {[%clk 0:01:46]} 8. Re1 {[%clk 0:02:36]}  Bg4 {[%clk 0:01:38]} 9. h3 {[%clk 0:02:24]}  Bxf3 {[%clk 0:01:38]} 10. Bxf3 {[%clk 0:02:25]}  exd4 {[%clk 0:01:38]} 11. Qxd4 {[%clk 0:02:26]}  Re8 {[%clk 0:01:36]} 12. Qd1 {[%clk 0:02:22]}  Nc5 {[%clk 0:01:36]} 13. Bg2 {[%clk 0:02:22]}  c6 {[%clk 0:01:34]} 14. a4 {[%clk 0:02:22]}  d5 {[%clk 0:01:28]} 15. exd5 {[%clk 0:02:02]}  Rxe1+ {[%clk 0:01:29]} 16. Qxe1 {[%clk 0:02:03]}  cxd5 {[%clk 0:01:30]} 17. Bg5 {[%clk 0:01:56]}  d4 {[%clk 0:01:23]} 18. Nd5 {[%clk 0:01:49]}  Ne6 {[%clk 0:01:21]} 19. Bxf6 {[%clk 0:01:46]}  Bxf6 {[%clk 0:01:22]} 20. Qb4 {[%clk 0:01:37]}  Bg7 {[%clk 0:01:15]} 21. Qxb7 {[%clk 0:01:35]}  Rb8 {[%clk 0:01:16]} 22. Qxa7 {[%clk 0:01:34]}  Rxb2 {[%clk 0:01:16]} 23. a5 {[%clk 0:01:32]}  Rxc2 {[%clk 0:01:06]} 24. Qb6 {[%clk 0:01:24]}  d3 {[%clk 0:01:06]} 25. Rd1 {[%clk 0:01:07]}  Qxb6 {[%clk 0:00:54]} 26. axb6 {[%clk 0:01:01]}  Bd4 {[%clk 0:00:50]} 27. b7 {[%clk 0:00:59]}  Bxf2+ {[%clk 0:00:50]} 28. Kh2 {[%clk 0:01:00]}  Rb2 {[%clk 0:00:49]} 29. Rxd3 {[%clk 0:00:44]}  Kg7 {[%clk 0:00:49]} 30. Rd2 {[%clk 0:00:41]}  Bxg3+ {[%clk 0:00:32]} 31. Kxg3 {[%clk 0:00:42]}  Rxb7 {[%clk 0:00:33]} 32. Rd3 {[%clk 0:00:43]}  h5 {[%clk 0:00:32]} 33. h4 {[%clk 0:00:33]}  Ra7 {[%clk 0:00:32]} 34. Ne3 {[%clk 0:00:31]}  Ra4 {[%clk 0:00:28]} 35. Rc3 {[%clk 0:00:29]}  Nd4 {[%clk 0:00:27]} 36. Bf1 {[%clk 0:00:29]}  Ne6 {[%clk 0:00:24]} 37. Bc4 {[%clk 0:00:27]}  Nc5 {[%clk 0:00:23]} 38. Kf3 {[%clk 0:00:26]}  Nd7 {[%clk 0:00:23]} 39. Ke4 {[%clk 0:00:22]}  Nf6+ {[%clk 0:00:22]} 40. Kf4 {[%clk 0:00:20]}  Nd7 {[%clk 0:00:20]} 41. Rd3 {[%clk 0:00:19]}  Nf6 {[%clk 0:00:19]} 42. Rd6 {[%clk 0:00:19]}  Rb4 {[%clk 0:00:19]} 43. Rc6 {[%clk 0:00:18]}  Rb2 {[%clk 0:00:19]} 44. Rc7 {[%clk 0:00:18]}  Rf2+ {[%clk 0:00:20]} 45. Ke5 {[%clk 0:00:09]}  Ng4+ {[%clk 0:00:20]} 46. Nxg4 {[%clk 0:00:09]}  hxg4 {[%clk 0:00:21]} 47. Bd5 {[%clk 0:00:09]}  g3 {[%clk 0:00:21]} 48. Rc3 {[%clk 0:00:10]}  Rh2 {[%clk 0:00:19]} 49. Rf3 {[%clk 0:00:03]}  f5 {[%clk 0:00:17]} 50. Rxg3 {[%clk 0:00:04]}  Rxh4 {[%clk 0:00:17]} 51. Be6 {[%clk 0:00:05]}  Re4+ {[%clk 0:00:15]} 52. Kd6 {[%clk 0:00:05]}  Kf6 {[%clk 0:00:16]} 53. Bd5 {[%clk 0:00:05]}  Rd4 {[%clk 0:00:16]} 54. Ra3 {[%clk 0:00:06]}  g5 {[%clk 0:00:16]} 55. Kc5 {[%clk 0:00:07]}  Rd2 {[%clk 0:00:15]} 56. Ra6+ {[%clk 0:00:08]}  Ke5 {[%clk 0:00:15]} 57. Re6+ {[%clk 0:00:08]}  Kf4 {[%clk 0:00:16]} 58. Re8 {[%clk 0:00:09]}  g4 {[%clk 0:00:16]} 59. Rf8 {[%clk 0:00:10]}  Re2 {[%clk 0:00:16]} 60. Bc6 {[%clk 0:00:10]}  Re5+ {[%clk 0:00:15]} 61. Kd4 {[%clk 0:00:10]}  Re7 {[%clk 0:00:15]} 62. Bd5 {[%clk 0:00:11]}  g3 {[%clk 0:00:15]} 63. Rg8 {[%clk 0:00:11]}  Re1 {[%clk 0:00:14]} 64. Kc3 {[%clk 0:00:11]}  Rd1 {[%clk 0:00:15]} 65. Bb3 {[%clk 0:00:11]}  Rd7 {[%clk 0:00:13]} 66. Ba4 {[%clk 0:00:11]}  Rd6 {[%clk 0:00:12]} 67. Bc2 {[%clk 0:00:11]}  Rd5 {[%clk 0:00:12]} 68. Bb3 {[%clk 0:00:11]}  Rd7 {[%clk 0:00:08]} 69. Bc4 {[%clk 0:00:12]}  Kf3 {[%clk 0:00:08]} 70. Be6 {[%clk 0:00:11]}  Rc7+ {[%clk 0:00:08]} 71. Kd4 {[%clk 0:00:12]}  f4 {[%clk 0:00:09]} 72. Ke5 {[%clk 0:00:11]}  Rc5+ {[%clk 0:00:09]} 73. Bd5+ {[%clk 0:00:11]}  Ke3 {[%clk 0:00:09]} 74. Ra8 {[%clk 0:00:12]}  Rc3 {[%clk 0:00:09]} 75. Rf8 {[%clk 0:00:11]}  Ra3 {[%clk 0:00:08]} 76. Rxf4 {[%clk 0:00:11]}  g2 {[%clk 0:00:06]} 77. Rg4 {[%clk 0:00:08]}  Kf2 {[%clk 0:00:02]} 78. Rxg2+ {[%clk 0:00:08]}  Kf1 {[%clk 0:00:02]} 79. Rb2 {[%clk 0:00:08]}  Ke1 {[%clk 0:00:03]} 80. Be4 {[%clk 0:00:08]}  Rg3 {[%clk 0:00:03]} 81. Kf4 {[%clk 0:00:08]}  Rc3 {[%clk 0:00:04]} 82. Bf3 {[%clk 0:00:06]}  Kf1 {[%clk 0:00:03]} 83. Kg3 {[%clk 0:00:05]}  Ke1 {[%clk 0:00:04]} 84. Ra2 {[%clk 0:00:03]}  Rb3 {[%clk 0:00:04]} 85. Re2+ {[%clk 0:00:03]}  Kd1 {[%clk 0:00:04]} 86. Rb2+ {[%clk 0:00:03]}  Kc1 {[%clk 0:00:01]} 87. Rxb3 {[%clk 0:00:03]} 1-0


[Site "https://www.chess.com"]

[Event "Titled Tuesday Blitz March 28 Early 2023"]
[White "Savitha Shri B"]
[Black "Kovalev, Vladislav"]
[WhiteFideId "35061887"]
[BlackFideId "13504398"]
[WhiteElo "2191"]
[BlackElo "2555"]
[Result "0-1"]
[Round "01"]
[TimeControl "180+2"]
[Date "2023.03.28"]
[WhiteClock "0:00:21"]
[BlackClock "0:00:55"]

1. Nf3 {[%clk 0:03:00]}  Nf6 {[%clk 0:03:00]} 2. d4 {[%clk 0:03:01]}  e6 {[%clk 0:02:59]} 3. c4 {[%clk 0:03:01]}  d5 {[%clk 0:03:00]} 4. Nc3 {[%clk 0:03:02]}  Be7 {[%clk 0:02:58]} 5. Bg5 {[%clk 0:02:59]}  h6 {[%clk 0:02:58]} 6. Bh4 {[%clk 0:02:59]}  Ne4 {[%clk 0:02:58]} 7. Bxe7 {[%clk 0:02:58]}  Qxe7 {[%clk 0:02:59]} 8. Qc2 {[%clk 0:02:58]}  Nxc3 {[%clk 0:02:56]} 9. bxc3 {[%clk 0:02:59]}  c5 {[%clk 0:02:26]} 10. e4 {[%clk 0:02:36]}  cxd4 {[%clk 0:02:17]} 11. cxd4 {[%clk 0:02:34]}  Qb4+ {[%clk 0:02:02]} 12. Nd2 {[%clk 0:02:34]}  Nc6 {[%clk 0:02:03]} 13. Qd3 {[%clk 0:01:56]}  dxe4 {[%clk 0:01:57]} 14. Qxe4 {[%clk 0:01:56]}  Qc3 {[%clk 0:01:56]} 15. Rd1 {[%clk 0:01:34]}  Qxd4 {[%clk 0:01:52]} 16. Qxd4 {[%clk 0:01:30]}  Nxd4 {[%clk 0:01:53]} 17. Nb3 {[%clk 0:01:30]}  Nc2+ {[%clk 0:01:41]} 18. Kd2 {[%clk 0:01:30]}  Nb4 {[%clk 0:01:42]} 19. Kc3 {[%clk 0:01:30]}  Nxa2+ {[%clk 0:01:41]} 20. Kb2 {[%clk 0:01:26]}  Nb4 {[%clk 0:01:42]} 21. c5 {[%clk 0:01:19]}  Bd7 {[%clk 0:01:40]} 22. Na5 {[%clk 0:01:18]}  b6 {[%clk 0:01:36]} 23. cxb6 {[%clk 0:01:10]}  axb6 {[%clk 0:01:36]} 24. Nc4 {[%clk 0:01:10]}  Ra2+ {[%clk 0:01:05]} 25. Kb1 {[%clk 0:01:10]}  Rxf2 {[%clk 0:01:05]} 26. Nxb6 {[%clk 0:01:03]}  Bc6 {[%clk 0:01:05]} 27. Rd4 {[%clk 0:01:01]}  Nd5 {[%clk 0:01:00]} 28. Nxd5 {[%clk 0:00:48]}  Bxd5 {[%clk 0:01:01]} 29. Kc1 {[%clk 0:00:26]}  Ke7 {[%clk 0:01:01]} 30. Rd2 {[%clk 0:00:26]}  Rc8+ {[%clk 0:00:58]} 31. Kd1 {[%clk 0:00:26]}  Bb3+ {[%clk 0:00:53]} 32. Ke1 {[%clk 0:00:27]}  Rxd2 {[%clk 0:00:54]} 33. Kxd2 {[%clk 0:00:27]}  Rc2+ {[%clk 0:00:54]} 34. Kd3 {[%clk 0:00:25]}  Rc1 {[%clk 0:00:54]} 35. Rg1 {[%clk 0:00:20]}  Bc4+ {[%clk 0:00:54]} 36. Kd2 {[%clk 0:00:21]}  Rxf1 {[%clk 0:00:55]} 0-1


[Site "https://www.chess.com"]

[Event "Titled Tuesday Blitz March 28 Early 2023"]
[White "Pakleza, Zbigniew"]
[Black "Miszler, Levente"]
[WhiteFideId "1119290"]
[BlackFideId "763276"]
[WhiteElo "2410"]
[BlackElo "2176"]
[Result "1-0"]
[Round "01"]
[TimeControl "180+2"]
[Date "2023.03.28"]
[WhiteClock "0:00:18"]
[BlackClock "0:00:35"]

1. d4 {[%clk 0:03:00]}  Nf6 {[%clk 0:02:57]} 2. Nf3 {[%clk 0:03:00]}  g6 {[%clk 0:02:50]} 3. Bf4 {[%clk 0:02:58]}  Bg7 {[%clk 0:02:51]} 4. e3 {[%clk 0:02:57]}  O-O {[%clk 0:02:51]} 5. Be2 {[%clk 0:02:56]}  d6 {[%clk 0:02:52]} 6. h3 {[%clk 0:02:55]}  Nbd7 {[%clk 0:02:49]} 7. O-O {[%clk 0:02:55]}  c6 {[%clk 0:02:49]} 8. c4 {[%clk 0:02:54]}  Re8 {[%clk 0:02:48]} 9. Nc3 {[%clk 0:02:55]}  Qc7 {[%clk 0:02:47]} 10. Bh2 {[%clk 0:02:54]}  e5 {[%clk 0:02:47]} 11. c5 {[%clk 0:02:50]}  Nd5 {[%clk 0:02:20]} 12. cxd6 {[%clk 0:02:35]}  Qxd6 {[%clk 0:02:16]} 13. dxe5 {[%clk 0:02:29]}  Qb4 {[%clk 0:01:55]} 14. Nxd5 {[%clk 0:02:07]}  cxd5 {[%clk 0:01:55]} 15. Qxd5 {[%clk 0:01:51]}  Qxb2 {[%clk 0:01:48]} 16. Bc4 {[%clk 0:01:50]}  Rf8 {[%clk 0:01:28]} 17. Rab1 {[%clk 0:01:46]}  Qa3 {[%clk 0:01:27]} 18. e6 {[%clk 0:01:23]}  Nb6 {[%clk 0:01:18]} 19. exf7+ {[%clk 0:01:16]}  Kh8 {[%clk 0:01:17]} 20. Rxb6 {[%clk 0:01:01]}  axb6 {[%clk 0:01:15]} 21. Bd6 {[%clk 0:01:01]}  Qb2 {[%clk 0:01:05]} 22. Nd4 {[%clk 0:00:36]}  Bf5 {[%clk 0:00:47]} 23. Be5 {[%clk 0:00:17]}  Rad8 {[%clk 0:00:36]} 24. Bxg7+ {[%clk 0:00:17]}  Kxg7 {[%clk 0:00:36]} 25. Qe5+ {[%clk 0:00:18]}  Kh6 {[%clk 0:00:35]} 26. Nxf5+ {[%clk 0:00:18]} 1-0


[Site "https://www.chess.com"]

[Event "Titled Tuesday Blitz March 28 Early 2023"]
[White "Shubenkova, Veronika"]
[Black "Warmerdam, Max"]
[WhiteFideId "44124040"]
[BlackFideId "1048104"]
[WhiteElo "2027"]
[BlackElo "2518"]
[Result "0-1"]
[Round "01"]
[TimeControl "180+2"]
[Date "2023.03.28"]
[WhiteClock "0:01:07"]
[BlackClock "0:00:59"]

1. e4 {[%clk 0:03:00]}  e5 {[%clk 0:02:59]} 2. Nf3 {[%clk 0:03:00]}  Nc6 {[%clk 0:02:59]} 3. Bb5 {[%clk 0:03:00]}  a6 {[%clk 0:03:00]} 4. Bxc6 {[%clk 0:03:00]}  dxc6 {[%clk 0:03:00]} 5. O-O {[%clk 0:03:01]}  Qf6 {[%clk 0:02:59]} 6. d3 {[%clk 0:03:00]}  Ne7 {[%clk 0:02:45]} 7. Be3 {[%clk 0:02:57]}  Ng6 {[%clk 0:02:42]} 8. Nbd2 {[%clk 0:02:57]}  c5 {[%clk 0:02:38]} 9. Re1 {[%clk 0:02:57]}  h6 {[%clk 0:02:36]} 10. c3 {[%clk 0:02:55]}  Bd6 {[%clk 0:02:30]} 11. d4 {[%clk 0:02:52]}  cxd4 {[%clk 0:02:29]} 12. cxd4 {[%clk 0:02:52]}  O-O {[%clk 0:02:30]} 13. d5 {[%clk 0:02:45]}  Nf4 {[%clk 0:02:25]} 14. Bxf4 {[%clk 0:02:43]}  Qxf4 {[%clk 0:02:26]} 15. Nc4 {[%clk 0:02:41]}  Bg4 {[%clk 0:02:25]} 16. Nxd6 {[%clk 0:02:40]}  cxd6 {[%clk 0:02:25]} 17. h3 {[%clk 0:02:37]}  Bh5 {[%clk 0:02:23]} 18. g4 {[%clk 0:02:37]}  Bg6 {[%clk 0:02:22]} 19. Qd3 {[%clk 0:02:26]}  Rac8 {[%clk 0:02:18]} 20. Nh4 {[%clk 0:02:25]}  Rc7 {[%clk 0:02:11]} 21. Nf5 {[%clk 0:02:23]}  Bxf5 {[%clk 0:02:10]} 22. gxf5 {[%clk 0:02:23]}  Rfc8 {[%clk 0:02:09]} 23. Re3 {[%clk 0:02:16]}  Rc2 {[%clk 0:02:02]} 24. Rf1 {[%clk 0:02:13]}  Rxb2 {[%clk 0:01:59]} 25. Rg3 {[%clk 0:02:13]}  Rcc2 {[%clk 0:01:56]} 26. Rf3 {[%clk 0:02:07]}  Qg5+ {[%clk 0:01:52]} 27. Rg3 {[%clk 0:02:07]}  Qf4 {[%clk 0:01:49]} 28. Rg4 {[%clk 0:02:03]}  Rd2 {[%clk 0:01:15]} 29. Qg3 {[%clk 0:01:27]}  Qxg3+ {[%clk 0:01:15]} 30. Rxg3 {[%clk 0:01:27]}  Rxa2 {[%clk 0:01:15]} 31. Rc1 {[%clk 0:01:23]}  Rdc2 {[%clk 0:01:13]} 32. Rf1 {[%clk 0:01:20]}  Kf8 {[%clk 0:01:12]} 33. f4 {[%clk 0:01:13]}  exf4 {[%clk 0:01:10]} 34. Rxf4 {[%clk 0:01:14]}  Ra1+ {[%clk 0:01:05]} 35. Rf1 {[%clk 0:01:14]}  Rxf1+ {[%clk 0:01:06]} 36. Kxf1 {[%clk 0:01:15]}  f6 {[%clk 0:01:05]} 37. Rb3 {[%clk 0:01:14]}  Rc7 {[%clk 0:01:03]} 38. Rb6 {[%clk 0:01:13]}  Rd7 {[%clk 0:01:03]} 39. Ke2 {[%clk 0:01:13]}  Ke8 {[%clk 0:01:04]} 40. Kd3 {[%clk 0:01:13]}  Kd8 {[%clk 0:01:04]} 41. Kc4 {[%clk 0:01:13]}  Kc7 {[%clk 0:01:05]} 42. Rb1 {[%clk 0:01:13]}  Kb8 {[%clk 0:01:03]} 43. Kb4 {[%clk 0:01:12]}  Rc7 {[%clk 0:01:03]} 44. Ka5 {[%clk 0:01:12]}  Ka7 {[%clk 0:01:03]} 45. Rg1 {[%clk 0:01:10]}  Rc4 {[%clk 0:00:58]} 46. Rxg7 {[%clk 0:01:09]}  Rxe4 {[%clk 0:00:59]} 47. Rd7 {[%clk 0:01:08]}  Rd4 {[%clk 0:00:58]} 48. Rxd6 {[%clk 0:01:07]}  b6+ {[%clk 0:00:58]} 49. Rxb6 {[%clk 0:01:07]}  Rxd5+ {[%clk 0:00:59]} 0-1


[Site "https://www.chess.com"]